bitfinex-derivatives/quotes_SOLF0:USTF0_20241218
["timestamp","ask_amount","ask_price","bid_price","bid_amount"]
[1734490879313,2.34,218.48,218.36,11.12673164]
[1734490880420,2.34,218.48,218.43,2.2891]
[1734490884921,64.69932805,218.5,218.42,8.78673164]
[1734490885523,64.69932805,218.5,218.47,2.2887]
[1734490886523,2.2878,218.56,218.46,2.2887]
[1734490886722,2.34,218.54,218.43,1.4886]
[1734490887116,2.34,218.54,218.48,2.2885]
[1734490887726,2.34,218.54,218.49,2.2885]
[1734490890621,2.2882,218.53,218.47,2.2887]
[1734490891933,2.2882,218.53,218.45,5.42961809]
[1734490892128,2.2882,218.53,218.48,2.2886]
[1734490892828,2.34,218.54,218.48,2.2886]
[1734490893330,2.34,218.54,218.45,5.42961809]
[1734490893629,2.34,218.58,218.45,14.21634973]
[1734490893831,2.34,218.58,218.46,4.659]
[1734490894029,2.34,218.58,218.47,2.34]
[1734490894932,2.34,218.6,218.48,8.78673164]
[1734490895530,2.34,218.6,218.47,2.34]
[1734490896336,2.2876,218.58,218.47,2.34]
[1734490896735,2.34,218.6,218.47,2.34]
[1734490896936,2.2877,218.57,218.52,2.2882]
[1734490897839,2.34,218.6,218.47,2.34]
[1734490898441,2.2878,218.56,218.51,2.2882]
[1734490902335,17.8467662,218.6,218.49,8.78673164]
[1734490902641,4.6272,218.62,218.52,8.78673164]
[1734490902940,4.6272,218.62,218.57,2.2877]
[1734490903141,17.85485211,218.63,218.52,11.12673164]
[1734490903338,2.34,218.65,218.55,8.78673164]
[1734490903633,2.34,218.65,218.61,2.2871]
[1734490903836,17.87440526,218.68,218.61,2.2871]
[1734490904134,9.44804708,218.67,218.61,2.2871]
[1734490904536,2.2869,218.65,218.55,8.78673164]
[1734490905941,13.0577634,218.66,218.55,8.78673164]
[1734490906132,2.2867,218.66,218.6,2.2873]
[1734490906531,2.34,218.67,218.58,8.78673164]
[1734490906532,17.87809815,218.67,218.58,8.78673164]
[1734490906732,8.78673164,218.73,218.61,8.78673164]
[1734490906935,2.34,218.72,218.61,11.12673164]
[1734490907132,4.6261,218.72,218.61,11.12673164]
[1734490907337,11.73771759,218.72,218.61,11.12673164]
[1734490907536,17.88429513,218.72,218.61,11.12673164]
[1734490907840,10.77267754,218.71,218.64,8.78673164]
[1734490908037,2.34,218.73,218.64,8.78673164]
[1734490908337,17.89605192,218.74,218.64,8.78673164]
[1734490908538,10.77946978,218.74,218.64,8.78673164]
[1734490908735,2.34,218.75,218.71,2.2862]
[1734490909231,9.45646085,218.75,218.71,2.2862]
[1734490909435,2.34,218.75,218.71,2.2862]
[1734490909841,2.34,218.75,218.66,2.34]
[1734490910141,2.34,218.75,218.69,2.2863]
[1734490910435,2.2857,218.76,218.71,2.2862]
[1734490911138,103.35468211,218.77,218.71,2.2862]
[1734490913136,103.35468211,218.77,218.68,8.78673164]
[1734490913335,103.35468211,218.77,218.72,2.2861]
[1734490913942,2.34,218.8,218.71,8.78673164]
[1734490914440,8.78673164,218.79,218.65,11.12673164]
[1734490914645,19.53528567,218.79,218.68,2.2865]
[1734490914938,8.78673164,218.79,218.68,2.2865]
[1734490915133,19.52404709,218.79,218.68,2.2865]
[1734490915335,2.286,218.73,218.68,2.2865]
[1734490915844,2.34,218.75,218.65,11.12673164]
[1734490916041,2.2859,218.74,218.69,2.2864]
[1734490916845,2.34,218.75,218.7,2.2863]
[1734490917044,2.34,218.75,218.68,8.78673164]
[1734490917343,2.286,218.74,218.68,2.2864]
[1734490919746,2.286,218.73,218.68,2.2864]
[1734490920443,2.2862,218.72,218.66,2.2866]
[1734490921442,2.2862,218.72,218.65,11.12673164]
[1734490921640,2.2862,218.72,218.67,2.2866]
[1734490923650,2.2862,218.71,218.67,2.2866]
[1734490923950,2.34,218.75,218.67,2.2866]
[1734490924447,2.2861,218.72,218.67,2.2866]
[1734490924840,2.34,218.75,218.65,8.78673164]
[1734490925047,2.34,218.75,218.65,2.2867]
[1734490925749,2.2864,218.7,218.65,2.2867]
[1734490925950,2.2864,218.7,218.64,5.60889254]
[1734490926142,2.34,218.75,218.66,2.2867]
[1734490926344,2.34,218.75,218.64,5.60889254]
[1734490926543,2.2862,218.72,218.67,2.2866]
[1734490928653,2.34,218.75,218.66,8.78673164]
[1734490928852,2.286,218.73,218.68,2.2865]
[1734490929052,2.34,218.75,218.68,2.2865]
[1734490929251,2.286,218.73,218.68,2.2865]
[1734490929546,3.0264,218.83,218.69,8.78673164]
[1734490929547,2.34,218.77,218.69,8.78673164]
[1734490929748,2.2856,218.77,218.69,8.78673164]
[1734490929952,2.2856,218.77,218.74,5.60527169]
[1734490930549,2.2857,218.76,218.74,5.60527169]
[1734490930750,2.2857,218.76,218.72,7.89137169]
[1734490931752,2.2857,218.76,218.74,5.60527169]
[1734490931946,2.32,218.8,218.73,2.2859]
[1734490932354,2.2855,218.78,218.74,2.2859]
[1734490932551,23.38423412,218.84,218.77,8.75732608]
[1734490932852,5.55623656,218.84,218.81,2.2851]
[1734490933557,0.18359,218.88,218.81,2.2851]
[1734490933758,0.18359,218.88,218.8,8.75732608]
[1734490933759,2.2845,218.87,218.82,2.285]
[1734490934550,0.18359,218.88,218.82,2.285]
[1734490935058,0.18359,218.88,218.8,8.75732608]
[1734490935352,0.18359,218.88,218.83,2.2849]
[1734490937359,0.18359,218.88,218.78,2.2854]
[1734490937555,0.18359,218.88,218.79,8.75732608]
[1734490937759,2.2847,218.86,218.79,8.75732608]
[1734490937965,2.32,218.87,218.8,2.2852]
[1734490938661,2.2847,218.85,218.8,2.2852]
[1734490939661,2.32,218.87,218.79,8.75732608]
[1734490940260,2.2848,218.85,218.79,8.75732608]
[1734490940463,2.32,218.87,218.79,8.75732608]
[1734490941664,2.32,218.87,218.77,5.35290083]
[1734490941865,2.32,218.87,218.79,8.75732608]
[1734490942061,2.2848,218.85,218.8,2.2852]
[1734490942466,0.18359,218.88,218.79,8.75732608]
[1734490943161,2.2847,218.86,218.81,2.2851]
[1734490943364,0.18359,218.88,218.81,2.2851]
[1734490943563,0.18359,218.88,218.79,8.75732608]
[1734490943867,2.2847,218.85,218.81,2.2852]
[1734490944068,0.18359,218.88,218.82,8.75732608]
[1734490944263,0.18359,218.88,218.86,8.75732608]
[1734490944669,0.18359,218.88,218.87,2.2845]
[1734490945167,2.284,218.92,218.88,2.2844]
[1734490945364,2.32,218.96,218.88,2.2844]
[1734490945570,2.32,218.96,218.86,11.07732608]
[1734490945764,2.32,218.96,218.89,11.04162608]
[1734490945970,13.05811909,218.98,218.89,11.04162608]
[1734490946165,2.2838,218.95,218.89,11.04162608]
[1734490946571,2.2838,218.95,218.89,8.75732608]
[1734490947071,2.2838,218.94,218.9,2.2842]
[1734490947571,2.2838,218.94,218.89,8.75732608]
[1734490949569,2.2838,218.94,218.89,11.04162608]
[1734490949772,2.2837,218.96,218.89,8.75732608]
[1734490950068,2.32,218.98,218.9,2.2842]
[1734490950576,2.32,218.98,218.89,11.04162608]
[1734490951470,2.2839,218.94,218.9,2.2842]
[1734490952973,158.18170387,218.99,218.89,8.75732608]
[1734490953178,158.18170387,218.99,218.92,8.75732608]
[1734490953767,2.2835,218.97,218.93,2.2838]
[1734490953972,2.2835,218.97,218.92,8.75732608]
[1734490953973,10.74395824,218.98,218.92,8.75732608]
[1734490954168,10.74395824,218.98,218.95,8.75732608]
[1734490954374,160.46510387,218.99,218.95,8.75732608]
[1734490954676,158.18170387,218.99,218.95,8.75732608]
[1734490955274,158.18170387,218.99,218.95,11.04102608]
[1734490955275,160.46500387,218.99,218.95,11.04102608]
[1734490955480,2.55068,218.99,218.95,11.04102608]
[1734490956074,2.2834,218.98,218.95,8.75732608]
[1734490956370,0.26738,218.99,218.92,8.75732608]
[1734490956769,2.2836,218.97,218.93,2.2839]
[1734490958775,0.26738,218.99,218.96,2.2836]
[1734490959077,0.26738,218.99,218.95,8.75732608]
[1734490959379,0.26738,218.99,218.98,11.04072608]
[1734490959578,2.2829,219.03,218.98,8.75732608]
[1734490960372,2.2829,219.03,218.98,11.04072608]
[1734490960881,13.00939649,219.05,219.01,8.75732608]
[1734490961083,2.32,219.1,219.01,8.75732608]
[1734490961284,2.32,219.11,219.01,8.75732608]
[1734490962385,2.32,219.11,219.01,11.04032608]
[1734490962586,2.32,219.11,218.98,8.75732608]
[1734490964587,2.2829,219.03,218.99,2.2833]
[1734490966385,2.2829,219.03,218.98,11.04072608]
[1734490966585,2.283,219.02,218.98,11.04072608]
[1734490966984,2.2829,219.03,218.99,2.2833]
[1734490967184,2.32,219.11,218.98,8.75732608]
[1734490967389,1.5626,219.1,218.98,8.75732608]
[1734490968190,2.2831,219.02,218.98,8.75732608]
[1734490968689,2.32,219.08,219.01,8.75732608]
[1734490968984,2.2828,219.04,219.01,8.75732608]
[1734490972090,2.2826,219.06,219.01,8.75732608]
[1734490972495,7.07816066,219.08,219.01,8.75732608]
[1734490972694,2.2826,219.06,219.01,11.04032608]
[1734490973098,10.72367008,219.09,219.01,8.75732608]
[1734490973294,2.2822,219.1,219.05,2.2826]
[1734490973495,2.2822,219.1,219.07,8.75732608]
[1734490974789,7.09442112,219.12,219.07,8.75732608]
[1734490975299,2.2821,219.11,219.07,8.75732608]
[1734490977205,2.2822,219.1,219.07,8.75732608]
[1734490978796,2.282,219.12,219.07,11.03972608]
[1734490979099,2.282,219.12,219.07,8.75732608]
[1734490980099,2.282,219.12,219.09,2.2822]
[1734490980803,2.282,219.12,219.07,8.75732608]
[1734490981099,2.282,219.12,219.08,2.2823]
[1734490981802,2.2818,219.14,219.1,8.75732608]
[1734490983397,7.10746521,219.18,219.09,2.2822]
[1734490983702,2.2818,219.13,219.09,2.2822]
[1734490984403,7.10746521,219.18,219.07,14.12036886]
[1734490984802,7.10746521,219.19,219.07,14.12036886]
[1734490985004,15.86479129,219.19,219.07,8.75732608]
[1734490985303,10.76851116,219.18,219.07,8.75732608]
[1734490985502,7.10746521,219.17,219.04,11.07732608]
[1734490985803,7.10746521,219.17,219.01,8.75732608]
[1734490985804,8.75732608,219.16,219.01,8.75732608]
[1734490986004,2.32,219.15,219.01,8.75732608]
[1734490986201,21.76597637,219.15,219.01,8.75732608]
[1734490986401,2.2828,219.04,219.01,8.75732608]
[1734490989400,2.2826,219.06,219.02,2.283]
[1734490989708,7.10746521,219.07,219.04,8.75732608]
[1734490990106,10.76851116,219.07,219.04,8.75732608]
[1734490990405,2.32,219.12,219.04,8.75732608]
[1734490990406,10.76851116,219.06,219.04,8.75732608]
[1734490990604,2.2825,219.07,219.04,8.75732608]
[1734490991297,2.2826,219.06,219.04,8.75732608]
[1734490991497,7.12545637,219.1,219.04,8.75732608]
[1734490991911,2.2824,219.08,219.04,11.04002608]
[1734490992202,17.92105054,219.11,219.04,11.07732608]
[1734490992504,17.92105054,219.1,219.04,11.07732608]
[1734490992805,17.92105054,219.09,219.04,11.07732608]
[1734490993005,17.92105054,219.08,219.04,11.07732608]
[1734490993207,17.92105054,219.07,219.04,11.07732608]
[1734490993405,17.92105054,219.06,219.05,2.2826]
[1734490993600,2.32,219.12,219.04,11.07732608]
[1734490993601,10.79559417,219.11,219.04,11.07732608]
[1734490993807,3.12097417,219.1,219.08,8.75732608]
[1734490994002,64.5205188,219.13,219.09,5.58662857]
[1734490994201,2.2819,219.12,219.11,5.58662857]
[1734490994405,64.5205188,219.13,219.07,2.2824]
[1734490994602,64.5205188,219.13,219.11,5.58662857]
[1734490995404,2.2819,219.12,219.11,5.58662857]
[1734490995601,64.5205188,219.13,219.11,5.58662857]
[1734490995803,2.32,219.2,219.11,5.58662857]
[1734490996006,0.21024,219.21,219.13,8.72506385]
[1734490996201,2.53024,219.21,219.1,13.32706385]
[1734490996707,0.21024,219.21,219.1,13.32706385]
[1734490996908,2.53024,219.21,219.1,13.32706385]
[1734490997603,2.2818,219.13,219.1,11.04506385]
[1734490998011,11.25530385,219.21,219.01,4.4122]
[1734490998209,7.18615244,219.2,219.05,8.72506385]
[1734490998407,2.2822,219.1,219.05,11.00766385]
[1734490999109,2.2823,219.09,219.05,11.00766385]
[1734491000108,2.32,219.1,219.0,5.59419097]
[1734491000411,2.32,219.09,218.96,8.72506385]
[1734491000710,2.283,219.02,218.96,11.00856385]
[1734491001206,2.32,219.08,218.96,8.72506385]
[1734491001401,2.32,219.08,218.99,8.72506385]
[1734491001605,8.83029946,219.12,219.02,8.72506385]
[1734491002312,8.83029946,219.12,219.05,8.72506385]
[1734491002502,2.32,219.12,219.05,8.72506385]
[1734491002704,64.52295867,219.13,219.05,11.04506385]
[1734491002907,2.2821,219.1,219.05,13.32766385]
[1734491003501,2.282,219.12,219.06,2.2825]
[1734491003706,19.3880391,219.12,219.06,2.2825]
[1734491003913,12.80147591,219.12,219.06,2.2825]
[1734491004209,12.80147591,219.12,219.07,2.2824]
[1734491004409,10.51947591,219.11,219.07,2.2824]
[1734491004712,10.51947591,219.1,219.05,13.32766385]
[1734491005008,2.32,219.17,219.05,11.04506385]
[1734491005213,2.2822,219.09,219.05,11.04506385]
[1734491005905,23.63191844,219.16,219.05,11.04506385]
[1734491006105,23.63191844,219.15,219.05,11.04506385]
[1734491006308,23.63191844,219.14,219.05,11.04506385]
[1734491006604,2.2823,219.09,219.05,11.04506385]
[1734491007011,2.2823,219.09,219.05,8.72506385]
[1734491007412,19.3927602,219.09,219.05,8.72506385]
[1734491007606,12.80432249,219.08,219.04,2.32]
[1734491007814,17.11052224,219.07,219.03,2.2828]
[1734491008010,10.52202249,219.06,219.02,8.72506385]
[1734491008211,10.52202249,219.05,218.99,8.72506385]
[1734491008412,17.11044948,219.04,218.99,11.04506385]
[1734491008706,10.52202249,219.03,218.99,11.04506385]
[1734491008907,10.52202249,219.02,218.99,11.04506385]
[1734491009110,10.52202249,219.1,218.99,11.04506385]
[1734491009317,10.52202249,219.09,218.99,11.04506385]
[1734491009512,2.2829,219.03,218.99,2.32]
[1734491012114,19.39321001,219.03,218.99,2.32]
[1734491012313,10.52202249,219.02,218.99,2.32]
[1734491012612,2.2829,219.03,218.99,2.32]
[1734491012613,10.52202249,219.01,218.99,2.32]
[1734491012812,2.2829,219.03,218.98,11.00836385]
[1734491013009,2.2829,219.03,218.98,13.32836385]
[1734491013210,2.283,219.02,218.98,11.00836385]
[1734491013412,2.283,219.02,218.98,13.32836385]
[1734491015112,6.59029835,219.07,218.98,13.32836385]
[1734491015314,6.59029835,219.09,219.04,8.72506385]
[1734491015517,13.11446592,219.09,219.04,8.72506385]
[1734491015715,10.53078918,219.08,219.04,8.72506385]
[1734491015911,10.53078918,219.07,219.04,8.72506385]
[1734491016112,66.83995618,219.14,219.04,8.72506385]
[1734491016417,2.2825,219.07,219.04,8.72506385]
[1734491018018,2.2825,219.07,219.06,5.58886892]
[1734491018218,2.2825,219.07,219.02,2.2829]
[1734491018219,16.11668689,219.11,218.99,1.4899]
[1734491018415,6.59223924,219.1,218.99,3.8099]
[1734491018620,6.59223924,219.1,219.03,5.58886892]
[1734491018621,2.2828,219.04,219.03,5.58886892]
[1734491022335,12.80763817,219.04,219.03,5.58886892]
[1734491022540,19.39717215,219.04,219.03,5.58886892]
[1734491022836,8.87233398,219.04,219.03,5.58886892]
[1734491023032,2.2828,219.04,219.03,5.58886892]
[1734491024733,8.87233398,219.04,219.03,5.58886892]
[1734491024938,19.39718148,219.04,219.03,5.58886892]
[1734491025532,8.87233398,219.04,219.03,5.58886892]
[1734491025838,2.2828,219.04,219.03,5.58886892]
[1734491027541,19.39718148,219.04,219.03,5.58886892]
[1734491027941,8.87233398,219.04,219.03,5.58886892]
[1734491028132,2.2828,219.04,219.03,5.58886892]
[1734491028334,18.70335969,219.07,218.84,25.02665392]
[1734491028535,13.11449077,219.06,218.94,2.32]
[1734491028738,23.63933827,219.06,218.98,5.58886892]
[1734491028938,6.58953398,219.05,218.98,5.58886892]
[1734491029343,13.11449077,219.05,218.98,5.58886892]
[1734491029640,2.2832,219.0,218.96,2.2836]
[1734491029843,2.2832,219.0,218.99,5.58886892]
[1734491032746,6.58953398,219.05,218.99,5.58886892]
[1734491032944,2.283,219.02,219.01,5.58886892]
[1734491036844,10.5248475,219.08,219.01,5.58886892]
[1734491037047,10.5248475,219.07,219.06,5.58886892]
[1734491037541,2.32,219.11,219.06,5.58886892]
[1734491037937,12.8448475,219.11,219.06,5.58886892]
[1734491038140,6.58213244,219.1,219.06,5.58886892]
[1734491038346,10.5248475,219.11,219.09,5.58886892]
[1734491038542,6.51563297,219.12,219.09,5.58886892]
[1734491038747,6.51563297,219.12,219.04,3.8078]
[1734491038748,13.09804572,219.12,219.11,5.58886892]
[1734491038944,17.04048047,219.12,219.11,5.58886892]
[1734491039346,6.51563297,219.12,219.11,5.58886892]
[1734491040857,6.51563297,219.12,219.09,2.32]
[1734491041152,6.51563297,219.12,219.11,5.58886892]
[1734491041746,6.51563297,219.12,218.9,6.25666348]
[1734491041943,13.09779304,219.12,219.06,5.58886892]
[1734491042144,10.51125498,219.11,219.06,5.58886892]
[1734491042453,6.58216007,219.1,219.06,5.58886892]
[1734491042651,2.2824,219.07,219.06,5.58886892]
[1734491043858,2.2824,219.07,218.98,2.8844]
[1734491043859,6.51996224,219.07,218.98,2.8844]
[1734491044153,10.51125498,219.06,219.0,5.58886892]
[1734491044349,2.2829,219.03,219.0,5.58886892]
[1734491044753,15.38710521,219.03,219.0,5.58886892]
[1734491044949,10.51125498,219.02,219.0,5.58886892]
[1734491045154,6.58424297,219.01,219.0,5.58886892]
[1734491045355,17.09549795,219.01,219.0,5.58886892]
[1734491046050,17.09549795,219.01,218.97,5.58820036]
[1734491046253,6.58424297,219.0,218.97,5.58820036]
[1734491046451,23.61331237,219.06,218.97,5.58820036]
[1734491046657,6.58424297,219.05,218.97,5.58820036]
[1734491046853,2.2831,219.02,218.97,5.58820036]
[1734491047652,2.2831,219.01,218.97,5.58820036]
[1734491048054,19.37859795,219.01,218.97,5.58820036]
[1734491048349,19.37859795,219.01,218.9,3.0533]
[1734491048350,17.09549795,219.0,218.91,2.284]
[1734491048553,23.60999138,218.99,218.91,2.32]
[1734491048755,23.60999138,218.98,218.91,2.32]
[1734491048954,2.2838,218.94,218.91,2.32]
[1734491049750,8.86804297,218.94,218.91,2.32]
[1734491049959,6.58424297,218.94,218.91,2.32]
[1734491050154,23.60531325,218.98,218.91,2.32]
[1734491050457,23.60531325,218.97,218.91,2.32]
[1734491050660,17.09549795,218.96,218.91,2.32]
[1734491050860,17.09549795,218.95,218.91,2.32]
[1734491051159,17.09549795,218.94,218.91,2.32]
[1734491051354,10.51125498,218.93,218.91,4.6041]
[1734491051561,10.51125498,218.92,218.91,4.6041]
[1734491051954,2.32,219.0,218.91,4.6041]
[1734491052152,2.2835,218.98,218.91,4.6041]
[1734491052357,2.32,219.0,218.91,4.6041]
[1734491052559,2.32,219.0,218.92,8.73841384]
[1734491052763,6.57192823,219.02,218.95,8.73841384]
[1734491052962,17.06622439,219.02,218.95,8.73841384]
[1734491053154,10.49429616,219.01,218.95,8.73841384]
[1734491053357,2.32,219.04,218.89,7.10887796]
[1734491053358,10.49429616,219.0,218.98,8.73841384]
[1734491053559,2.32,219.08,218.98,8.73841384]
[1734491053961,2.2823,219.08,219.02,2.2829]
[1734491054154,2.2823,219.08,219.02,2.32]
[1734491054758,12.77753472,219.08,219.02,2.32]
[1734491054959,2.2823,219.08,219.02,2.32]
[1734491055459,2.2823,219.08,219.03,2.2828]
[1734491055763,2.2822,219.1,219.04,8.73841384]
[1734491056557,2.282,219.11,219.06,2.2825]
[1734491056761,10.4987846,219.13,219.07,8.73841384]
[1734491057370,66.83995618,219.14,219.07,8.73841384]
[1734491057566,10.48797337,219.13,219.07,8.73841384]
[1734491058171,66.83995618,219.14,219.07,8.73841384]
[1734491058467,2.282,219.12,219.07,11.02081384]
[1734491059472,2.2823,219.09,219.04,11.02111384]
[1734491059768,10.48638083,219.13,219.04,8.73841384]
[1734491060072,2.2827,219.05,219.02,2.32]
[1734491061971,6.56568939,219.12,219.02,2.32]
[1734491062372,6.56568939,219.12,219.04,8.73841384]
[1734491062771,6.56568939,219.12,219.04,11.02111384]
[1734491063069,2.2821,219.1,219.04,8.73841384]
[1734491063277,10.48638083,219.13,219.07,8.73841384]
[1734491063574,10.48638083,219.13,219.07,11.05841384]
[1734491063975,64.51995618,219.14,219.07,4.6024]
[1734491064268,64.51995618,219.14,219.07,13.34081384]
[1734491065171,64.51995618,219.14,219.07,11.05841384]
[1734491065377,64.51995618,219.14,219.09,2.2822]
[1734491065573,64.51995618,219.14,219.07,11.05841384]
[1734491065875,2.2823,219.09,219.04,11.05841384]
[1734491067066,2.2824,219.08,219.04,11.05841384]
[1734491067577,64.51995618,219.14,219.01,5.39008127]
[1734491067578,2.2826,219.06,219.01,18.73159511]
[1734491067779,12.79786369,219.13,219.01,18.73159511]
[1734491068975,12.79786369,219.13,219.02,2.283]
[1734491069276,12.79786369,219.13,219.01,16.44849511]
[1734491069477,2.2824,219.08,219.03,2.2829]
[1734491069971,2.2824,219.07,219.03,2.2829]
[1734491070872,2.2825,219.06,219.02,2.283]
[1734491072275,2.2825,219.06,219.01,18.73149511]
[1734491072672,2.2825,219.07,219.02,2.2829]
[1734491072870,12.79786369,219.13,219.01,16.44849511]
[1734491073273,2.2823,219.09,219.04,2.2827]
[1734491073784,10.47786369,219.13,219.04,8.73841384]
[1734491073982,10.47786369,219.13,219.07,8.73841384]
[1734491074184,10.47786369,219.13,219.07,11.05841384]
[1734491074882,2.2821,219.11,219.07,13.34081384]
[1734491075079,10.47786369,219.13,219.07,11.05841384]
[1734491076480,2.2822,219.09,219.07,11.05841384]
[1734491077684,2.2822,219.09,219.07,2.32]
[1734491078883,2.2821,219.11,219.07,2.32]
[1734491079187,2.2821,219.11,219.07,4.6024]
[1734491079980,2.2821,219.1,219.07,4.6024]
[1734491081084,64.51995618,219.14,219.04,8.73841384]
[1734491081286,10.47863074,219.13,219.05,2.32]
[1734491081978,6.56008575,219.12,219.04,11.05841384]
[1734491082486,2.2824,219.08,219.04,13.34111384]
[1734491084188,10.47863074,219.13,219.04,11.05841384]
[1734491084682,64.51995618,219.14,219.04,11.05841384]
[1734491085382,64.51995618,219.14,219.04,8.73841384]
[1734491085590,2.2824,219.08,219.04,13.34121384]
[1734491086087,2.2824,219.08,219.07,5.58805509]
[1734491092489,64.51995618,219.14,219.1,2.2821]
[1734491092687,64.51995618,219.14,219.11,5.58805509]
[1734491093492,66.80175618,219.14,219.11,5.58805509]
[1734491097202,66.80175618,219.14,219.11,7.87005509]
[1734491097392,10.49777729,219.13,219.11,7.87005509]
[1734491097597,10.49777729,219.13,219.11,5.58805509]
[1734491101105,12.77957729,219.13,219.11,5.58805509]
[1734491103304,10.49777729,219.12,219.11,5.58805509]
[1734491103503,2.2818,219.13,219.11,5.58805509]
[1734491104300,10.49777729,219.15,219.11,5.58805509]
[1734491104498,2.2817,219.14,219.11,5.58805509]
[1734491104705,12.77947729,219.14,219.11,5.58805509]
[1734491104904,2.2817,219.14,219.11,5.58805509]
[1734491105502,2.2817,219.14,219.13,5.58805509]
[1734491105809,17.12616655,219.16,219.13,5.58805509]
[1734491106005,10.5317795,219.15,219.13,5.58805509]
[1734491106209,0.19748,219.2,219.13,5.58805509]
[1734491106413,0.19748,219.2,219.15,5.58805509]
[1734491106911,29.43911408,219.2,219.09,2.32]
[1734491107211,17.12656005,219.19,219.12,5.58805509]
[1734491107618,6.59448392,219.18,219.12,5.58805509]
[1734491107806,12.18253901,219.18,219.01,5.39008127]
[1734491108003,5.58805509,219.14,219.01,5.39008127]
[1734491108206,5.58805509,219.14,219.06,5.58805509]
[1734491108608,22.71461514,219.14,219.06,5.58805509]
[1734491108817,17.12656005,219.13,219.06,5.58805509]
[1734491109008,12.18253901,219.12,219.02,2.32]
[1734491109208,10.53207613,219.11,219.04,5.58805509]
[1734491109610,2.32,219.13,219.02,5.58805509]
[1734491109611,16.12013122,219.1,219.02,5.58805509]
[1734491109806,10.53207613,219.09,218.89,6.25666348]
[1734491110107,5.58805509,219.1,219.01,5.58805509]
[1734491110108,2.2827,219.05,219.01,5.58805509]
[1734491110509,10.53207613,219.06,219.03,5.58805509]
[1734491110812,2.2825,219.07,219.03,5.58805509]
[1734491111911,10.51629607,219.1,219.05,5.58805509]
[1734491111912,8.86752972,219.09,219.05,5.58805509]
[1734491112111,10.51629607,219.12,219.07,5.58805509]
[1734491112312,17.10113153,219.11,219.07,5.58805509]
[1734491112508,17.10113153,219.1,219.07,5.58805509]
[1734491112816,10.51629607,219.09,219.03,2.3]
[1734491113108,2.32,219.13,219.08,5.58805509]
[1734491113408,2.2821,219.1,219.08,5.58805509]
[1734491117008,8.86515062,219.13,219.08,7.87035509]
[1734491117207,13.09960174,219.15,219.1,5.58805509]
[1734491117516,10.52113509,219.14,219.08,5.58805509]
[1734491117718,6.58335062,219.13,219.08,5.58805509]
[1734491118317,6.58335062,219.14,219.08,5.58805509]
[1734491118520,2.2821,219.11,219.08,5.58805509]
[1734491119015,2.2821,219.11,219.1,5.58805509]
[1734491122419,2.2819,219.13,219.1,5.58805509]
[1734491122609,2.2819,219.13,219.12,5.58805509]
[1734491122814,6.58335062,219.15,219.1,5.58805509]
[1734491123117,5.58805509,219.14,219.05,5.58805509]
[1734491123319,18.69586803,219.14,219.05,5.58805509]
[1734491123510,29.21700312,219.14,219.05,5.58805509]
[1734491123715,25.92894803,219.13,219.05,5.58805509]
[1734491123919,17.10448571,219.12,219.05,5.58805509]
[1734491124109,6.58335062,219.12,219.05,5.58805509]
[1734491124719,13.11043316,219.12,219.05,5.58805509]
[1734491124918,10.52113509,219.11,219.05,5.58805509]
[1734491125119,6.58335062,219.1,219.05,5.58805509]
[1734491125523,2.2825,219.06,219.05,5.58805509]
[1734491126215,2.2825,219.07,219.05,5.58805509]
[1734491126415,2.2825,219.07,219.06,5.58805509]
[1734491126917,2.2823,219.09,219.06,5.58805509]
[1734491127117,6.58335062,219.11,219.06,5.58805509]
[1734491127622,2.3,219.13,219.06,5.58805509]
[1734491127817,23.62562902,219.14,219.08,5.58805509]
[1734491128011,17.10448571,219.13,219.08,5.58805509]
[1734491128319,7.88805509,219.16,219.08,5.58805509]
[1734491128320,17.10448571,219.12,219.08,5.58805509]
[1734491128517,10.52113509,219.11,219.08,5.58805509]
[1734491128816,2.2822,219.09,219.08,5.58805509]
[1734491131417,2.2824,219.08,219.06,5.58805509]
[1734491131918,10.52831427,219.1,219.06,5.58805509]
[1734491132113,10.52831427,219.09,219.06,5.58805509]
[1734491132312,5.58805509,219.14,219.06,5.58805509]
[1734491132520,2.2827,219.05,219.04,5.58805509]
[1734491133323,8.89571233,219.11,219.0,2.3]
[1734491133620,2.2829,219.03,219.0,2.3]
[1734491134124,2.2829,219.03,218.99,9.17809608]